Workbook

Sheet MSU
B1: Sami Muranen | E1: 13.1.1975 Sotkamo
B2: SUPERPESIS | E2: Runkosarja | I2: Kärkilyönnit (KL), pesänvälit | P2: Runkosarja TOP-30 | U2: Ylempi loppusarja | AB2: Ylempi loppusarja TOP-10 | AG2: Play off, voitot, voittoprosentti | AL2: Arvo-ottelut | AO2: Mitalit
B3: Vuosi | C3: Sija | D3: Seura | E3: OTT | F3: KUN | G3: LÖI | H3: TOI | I3: KL | J3: 0 > 1 | K3: 1 > 2 | L3: 2 > 3 | M3: 3 > k | N3: KL-% | P3: LÖI | Q3: TOI | R3: L+T | S3: KL | U3: OTT | V3: KUN | W3: LÖI | X3: TOI | Y3: KL | Z3: KL-% | AB3: LÖI | AC3: TOI | AD3: L+T | AE3: KL | AG3: Puolivälierät | AH3: Välierät | AI3: Pronssi | AJ3: Finaalit | AL3: IL | AM3: LL | AN3: hSM | AO3: K | AP3: H | AQ3: P
B4: 1992 | C4: 6. | D4: SoJy 2 | F4: suomensarja | AA4: 0
B5: 1993
B6: 1994 | C6: 3. | D6: HP-K | F6: ykköspesis | AA6: 0
B7: 1994 | C7: 3. | D7: SoJy | E7: 3 | F7: 0 | G7: 0 | H7: 0 | I7: 6 | J7: 2 | K7: 3 | L7: 1 | M7: 0 | N7: 46.2 % | AA7: 0 | AQ7: 1
B8: 1995 | C8: 1. | D8: SoJy | E8: 17 | F8: 1 | G8: 5 | H8: 8 | I8: 30 | J8: 15 | K8: 4 | L8: 5 | M8: 6 | N8: 38.7 % | U8: 1 | V8: 0 | W8: 0 | X8: 0 | Y8: 1 | Z8: 50.0 % | AG8: 3-0 Kiri | AO8: 1
B9: 1996 | C9: 10. | D9: KPK | F9: ykköspesis | AA9: 0
B10: 1997 | C10: 2. | D10: KiPa | E10: 28 | F10: 0 | G10: 9 | H10: 12 | I10: 67 | J10: 27 | K10: 10 | L10: 21 | M10: 9 | N10: 54.9 % | U10: 8 | V10: 0 | W10: 1 | X10: 1 | Y10: 11 | Z10: 45.8 % | AA10: 0 | AG10: 3-0 SiiPe | AH10: 3-0 Tahko | AJ10: 0-3 SoJy | AN10: 1 | AP10: 1
B11: 1998 | C11: 7. | D11: PattU | E11: 28 | F11: 0 | G11: 14 | H11: 13 | I11: 61 | J11: 26 | K11: 12 | L11: 9 | M11: 14 | N11: 46.6 % | U11: 3 | V11: 0 | W11: 1 | X11: 0 | Y11: 8 | Z11: 66.7 % | AA11: 66 | AG11: 0-3 Tiikerit
B12: 1999 | C12: 4. | D12: PattU | E12: 12 | F12: 0 | G12: 3 | H12: 2 | I12: 24 | J12: 17 | K12: 4 | L12: 0 | M12: 3 | N12: 42.1 % | U12: 10 | V12: 0 | W12: 1 | X12: 0 | Y12: 3 | Z12: 37.5 % | AG12: 3-1 SoJy | AH12: 0-3 KiPa | AI12: 1-2 Kiri
B13: 2000 | C13: 9. | D13: Kiri | E13: 26 | F13: 0 | G13: 6 | H13: 2 | I13: 72 | J13: 16 | K13: 30 | L13: 20 | M13: 6 | N13: 55.8 %
B14: 2001 | AA14: 0
B15: 2002 | C15: 11. | D15: KeKi | F15: ykköspesis | AA15: 0
B16: 2003 | C16: 7. | D16: KeKi | F16: ykköspesis | AA16: 0
B17: 2004 | AA17: 40
B18: 2005 | C18: 14. | D18: IiU | F18: ykköspesis | AA18: 85
B19: Yhteensä | E19: 114 | F19: 1 | G19: 37 | H19: 37 | I19: 260 | J19: 103 | K19: 63 | L19: 56 | M19: 38 | N19: 49.1 % | P19: 0-0-0 | Q19: 0-0-0 | R19: 0-0-0 | S19: 0-0-0 | U19: =PRODUCT(E25) -> 22 | V19: 0 | W19: 3 | X19: 1 | Y19: 23 | Z19: =PRODUCT(N25) -> 50.0 % | AA19: =SUM(AA3:AA18) -> 191 | AB19: 0-0-0 | AC19: 0-0-0 | AD19: 0-0-0 | AE19: 0-0-0 | AG19: 3/4 | AH19: 1/2 | AI19: 0/1 | AJ19: 0/1 | AL19: 0 | AM19: 0 | AN19: 1 | AO19: 1 | AP19: 1 | AQ19: 1
AG20: 75.0 % | AH20: 50.0 % | AI20: 0.0 % | AJ20: 0.0 %
B21: Pesispörssi | D21: 242.0
B23: URA SUPERISSA | E23: OTT | F23: KUN | G23: LÖI | H23: TOI | I23: KL | K23: ka/L | L23: ka/T | M23: ka/KL | N23: KL-% | P23: ENSIMMÄISET RUNKOSARJASSA | AG23: ENSIMMÄISET PUDOTUSPELEISSÄ | AL23: YLEISÖ
B24: Runkosarja | E24: 114 | F24: 1 | G24: 37 | H24: 37 | I24: 260 | K24: 0.33 | L24: 0.32 | M24: 2.28 | N24: 49.1 % | P24: Ottelu | R24: 19.07. 1994 Tahko - SoJy 1-0 (3-3, 8-2) | AA24: 1. ottelu | AD24: 19 v 6 kk 6 pv | AG24: Ottelu | AH24: 1. 13.08. 1995 SoJy - Kiri 2-0 | AL24: 1774 | AN24: 22 v 7 kk 7 pv
B25: Ylempi loppusarja | E25: 22 | F25: 0 | G25: 3 | H25: 1 | I25: 23 | K25: 0.14 | L25: 0.05 | M25: 1.05 | N25: 50.0 % | P25: Lyöty | R25: 06.06. 1995 Lippo - SoJy 0-2 (2-3, 1-4) | AA25: 5. ottelu | AD25: 20 v 4 kk 23 pv | AG25: Lyöty | AH25: 8. 07.09. 1997 KiPa - SoJy 1-2 s | AL25: 4871 | AN25: 22 v 7 kk 25 pv
B26: Alempi loppusarja | E26: 13 | F26: 0 | G26: 9 | H26: 6 | I26: 46 | K26: 0.69 | L26: 0.46 | M26: 3.54 | N26: 46.5 % | P26: Tuotu | R26: 21.05. 1995 KaMa - SoJy 1-2 (1-8, 2-1, 0-2) | AA26: 3. ottelu | AD26: 20 v 4 kk 8 pv | AG26: Tuotu | AH26: 3. 21.08. 1997 LP - SoJy 0-1 | AL26: 1351 | AN26: 22 v 7 kk 15 pv
B27: KAIKKI | E27: 149 | F27: 1 | G27: 49 | H27: 44 | I27: 329 | K27: 0.34 | L27: 0.30 | M27: 2.21 | N27: 48.8 % | P27: Kunnari | R27: 18.07. 1995 KiPa - SoJy 0-2 (0-3, 1-4) | AA27: 10. ottelu | AD27: 20 v 6 kk 5 pv | AG27: Kunnari
B29: Seurat | D29: HP-K = Haapajärven Pesä-Kiilat (1990) | K29: SoJy = Sotkamon Jymy (1909) | Q29: KPK = Kajaanin Pallokerho (1933) | X29: KiPa = Kiteen Pallo-90 (1990) | AD29: Kiri = Jyväskylän Kiri (1930) | AH29: KeKi = Kempeleen Kiri (1915) | AL29: IiU = Iin Urheilijat (1945)
B31: YLEISÖENNÄTYS KOTONA | M31: KATSOJIA YLI 5000
B32: 5234 | C32: 44. 15.06. 1995 SoJy - Lippo 0-2 | M32: 5753 | N32: 22. 31.07. 1997 Lippo - KiPa 0-2
M33: 5614 | N33: 27. 27.07. 1997 SMJ - KiPa 1-2
B34: YLEISÖENNÄTYS VIERAISSA | M34: 5234 | N34: 44. 15.06. 1995 SoJy - Lippo 0-2
B35: 5753 | C35: 22. 31.07. 1997 Lippo - KiPa 0-2 | M35: 5108 | N35: 61. 14.09. 1997 KiPa - SoJy 0-1, fin 3/3

Sheet MYP, MSS
B1: Sami Muranen | E1: 13.1.1975 Sotkamo
B2: YKKÖSPESIS | E2: Runkosarja | L2: Runkosarja TOP-10 | Q2: Jatkosarjat | X2: SUOMENSARJA | AA2: Runkosarja | AH2: Runkosarja TOP-10 | AM2: Jatkosarjat
B3: Vuosi | C3: Sija | D3: Seura | E3: OTT | F3: KUN | G3: LÖI | H3: TOI | I3: KL | J3: KL-% | L3: LÖI | M3: TOI | N3: L+T | O3: KL | Q3: OTT | R3: KUN | S3: LÖI | T3: TOI | U3: KL | V3: KL-% | X3: Vuosi | Y3: Sija | Z3: Seura | AA3: OTT | AB3: KUN | AC3: LÖI | AD3: TOI | AE3: KL | AF3: KL-% | AH3: LÖI | AI3: TOI | AJ3: L+T | AK3: KL | AM3: OTT | AN3: KUN | AO3: LÖI | AP3: TOI | AQ3: KL | AR3: KL-%
X4: 1992 | Y4: 6. | Z4: SoJy 2 | AA4: 16 | AB4: 1 | AC4: 13 | AD4: 7
B6: 1994 | C6: 3. | D6: HP-K | E6: 14 | F6: 1 | G6: 5 | H6: 13 | I6: 41
B8: 1996 | C8: 10. | D8: KPK | E8: 26 | F8: 2 | G8: 15 | H8: 20 | I8: 97
B10: 2002 | C10: 11. | D10: KeKi | E10: 19 | F10: 0 | G10: 7 | H10: 11 | I10: 93 | J10: 64.6 % | K10: 144 | Q10: 2 | R10: 0 | S10: 1 | T10: 0 | U10: 6 | V10: 40.0 % | W10: 15
B11: 2003 | C11: 7. | D11: KeKi | E11: 19 | F11: 0 | G11: 15 | H11: 8 | I11: 92 | J11: 61.7 % | K11: 149
B13: 2005 | C13: 14. | D13: IiU | E13: 4 | F13: 0 | G13: 0 | H13: 0 | I13: 14 | J13: 50.0 % | K13: 28
B14: YHTEENSÄ | E14: =SUM(E4:E13) -> 82 | F14: =SUM(F4:F13) -> 3 | G14: =SUM(G4:G13) -> 42 | H14: =SUM(H4:H13) -> 52 | I14: =SUM(I4:I13) -> 337 | J14: 0.0 % | K14: =SUM(K4:K13) -> 321 | Q14: =SUM(Q4:Q13) -> 2 | R14: =SUM(R4:R13) -> 0 | S14: =SUM(S4:S13) -> 1 | T14: =SUM(T4:T13) -> 0 | U14: =SUM(U4:U13) -> 6 | V14: 40.0 % | W14: =SUM(W4:W13) -> 15 | X14: YHTEENSÄ | AA14: =SUM(AA4:AA13) -> 16 | AB14: =SUM(AB4:AB13) -> 1 | AC14: =SUM(AC4:AC13) -> 13 | AD14: =SUM(AD4:AD13) -> 7 | AE14: =SUM(AE4:AE13) -> 0 | AF14: 0.0 % | AG14: =SUM(AG4:AG13) -> 0 | AM14: =SUM(AM4:AM13) -> 0 | AN14: =SUM(AN4:AN13) -> 0 | AO14: =SUM(AO4:AO13) -> 0 | AP14: =SUM(AP4:AP13) -> 0 | AQ14: =SUM(AQ4:AQ13) -> 0 | AR14: 0.0 % | AS14: =SUM(AS4:AS13) -> 0
B16: KAIKKI OTTELUT | E16: OTT | F16: KUN | G16: LÖI | H16: TOI | I16: KL | J16: KL-% | L16: ka/L | M16: ka/T | N16: ka/l+t | O16: ka/kl | R16: Seurat | T16: HP-K = Haapajärven Pesä-Kiilat (1990)
B17: SUPERPESIS | E17: 149 | F17: 1 | G17: 49 | H17: 44 | I17: 329 | J17: 48.8 % | K17: =PRODUCT(I17/J17) -> 674.1803279 | L17: =PRODUCT((F17+G17)/E17) -> 0.34 | M17: =PRODUCT(H17/E17) -> 0.30 | N17: =PRODUCT((F17+G17+H17)/E17) -> 0.63 | O17: =PRODUCT(I17/E17) -> 2.21 | T17: SoJy = Sotkamon Jymy (1909)
B18: YKKÖSPESIS | E18: =PRODUCT(E14+Q14) -> 84 | F18: =PRODUCT(F14+R14) -> 3 | G18: =PRODUCT(G14+S14) -> 43 | H18: =PRODUCT(H14+T14) -> 52 | I18: =PRODUCT(I14+U14) -> 343 | K18: =PRODUCT(K14+W14) -> 336 | L18: =PRODUCT((F18+G18)/E18) -> 0.55 | M18: =PRODUCT(H18/E18) -> 0.62 | N18: =PRODUCT((F18+G18+H18)/E18) -> 1.17 | O18: =PRODUCT(I18/E18) -> 4.08 | T18: KPK = Kajaanin Pallokerho (1933)
B19: SUOMENSARJA | E19: =PRODUCT(AA14+AM14) -> 16 | F19: =PRODUCT(AB14+AN14) -> 1 | G19: =PRODUCT(AC14+AO14) -> 13 | H19: =PRODUCT(AD14+AP14) -> 7 | I19: =PRODUCT(AE14+AQ14) -> 0 | J19: 0.0 % | K19: =PRODUCT(AG14+AS14) -> 0 | L19: 0.00 | M19: 0.00 | N19: 0.00 | O19: 0.00 | T19: KiPa = Kiteen Pallo-90 (1990)
B20: YHTEENSÄ | E20: =SUM(E17:E19) -> 249 | F20: =SUM(F17:F19) -> 5 | G20: 105 | H20: 103 | I20: 672 | K20: =SUM(K17:K19) -> 1010.180328 | L20: =PRODUCT((F20+G20)/E20) -> 0.44 | M20: =PRODUCT(H20/E20) -> 0.41 | N20: =PRODUCT((F20+G20+H20)/E20) -> 0.86 | O20: 2.88 | T20: Kiri = Jyväskylän Kiri (1930)
T21: KeKi = Kempeleen Kiri (1915)
T22: IiU = Iin Urheilijat (1945)

Sheet Arvo-ottelut
B1: ITÄ - LÄNSI - KORTTI
B2: Sami Muranen | C2: 13.1.1975 Sotkamo
B3: B-POJAT | C3: Itä - Länsi, tulos | D3: Joukkue | E3: Seura | G3: V | H3: T | I3: H | J3: Up. | K3: Lj. | L3: Palk. | M3: O | N3: K | O3: L | P3: T | Q3: KL | R3: 1 | S3: 2 | T3: 3 | U3: k | V3: KL-% | W3: Pelinjohtaja | X3: Yleisöä
B4: 07.07. 1992 Hämeenlinna | C4: 8-6 | D4: Itä | E4: SoJy | G4: 1 | L4: I p | M4: 1 | O4: 3 | W4: Pekka Arffman | X4: 1500
B6: A-POJAT | C6: Itä - Länsi, tulos | D6: Joukkue | E6: Seura | G6: V | H6: T | I6: H | J6: Up. | K6: Lj. | L6: Palk. | M6: O | N6: K | O6: L | P6: T | Q6: KL | R6: 1 | S6: 2 | T6: 3 | U6: k | V6: KL-% | W6: Pelinjohtaja | X6: Yleisöä
B7: 23.07. 1993 Kajaani | C7: 11-1 | D7: Itä | E7: SoJy | G7: 1 | J7: 2k | K7: 5 | M7: 1 | O7: 1 | P7: 1 | Q7: 2/5 | R7: 1/1 | S7: 0/2 | T7: 0/1 | U7: 1/1 | V7: 40.0 % | W7: Petri Lindsberg | X7: 1281
B8: 24.07. 1994 Loimaa | C8: 6-3 | D8: Itä | E8: SoJy | G8: 1 | J8: 3k | K8: 6 | M8: 1 | Q8: 0/4 | R8: 0/1 | S8: 0/2 | T8: 0/1 | V8: 0.0 % | W8: Petri Lindsberg | X8: 3268
B9: Yhteensä | G9: 2 | M9: =SUM(M7:M8) -> 2 | O9: 1 | P9: 1 | Q9: 2/9 | R9: 1/2 | S9: 0/4 | T9: 0/2 | U9: 1/1 | V9: 22.2 %
